fUST/lending_fUST_20251021
["ID","MTS","AMOUNT","RATE_DAILY","PERIOD"]
[391931267,1761002846532,3021.79300016,0.00024,2]
[391931268,1761002853075,4617.75,0.00024075,2]
[391931270,1761002876491,150.0,0.00022078,2]
[391931272,1761002888412,530.93304308,0.000237,14]
[391931281,1761002946738,150.0,0.00021993,2]
[391931300,1761002988955,168.723552,0.00012247,2]
[391931309,1761003013837,150.0,0.00021953,2]
[391931310,1761003014273,150.0,0.00023948,2]
[391931391,1761003038085,-289.82,0.00024117,10]
[391931392,1761003038094,-300.0,0.00024649,2]
[391931393,1761003038103,-44798.73334083,0.0002465,2]
[391931394,1761003038112,-509.0797649,0.0002465,2]
[391931395,1761003038121,-500.0,0.00024673,2]
[391931396,1761003038130,-500.0,0.00024673,2]
[391931397,1761003038139,-500.0,0.00024673,2]
[391931398,1761003038148,-500.0,0.00024673,2]
[391931399,1761003038157,-335.9880288,0.00024673,2]
[391931400,1761003038166,-500.0,0.00024673,2]
[391931401,1761003038174,-500.0,0.00024673,2]
[391931402,1761003038183,-761.87518095,0.00024807,2]
[391931403,1761003038192,-1354.44476613,0.00024807,2]
[391931404,1761003038202,-4727.93448804,0.00024903,2]
[391931405,1761003038210,-894.0,0.00025154,2]
[391931406,1761003038219,-409.13417559,0.00025205,2]
[391931407,1761003038228,-500.26549386,0.00025221,2]
[391931408,1761003038237,-1000.0,0.00025221,2]
[391931409,1761003038246,-1000.0,0.00025221,2]
[391931410,1761003038255,-1000.0,0.00025221,2]
[391931411,1761003038263,-1000.0,0.00025221,2]
[391931412,1761003038272,-614.73920808,0.00025221,2]
[391931413,1761003038281,-892.0,0.00025429,2]
[391931414,1761003038290,-892.0,0.00025465,7]
[391931415,1761003038300,-894.0,0.0002549,7]
[391931416,1761003038310,-892.0,0.00025507,2]
[391931417,1761003038320,-1024.87285329,0.00025768,2]
[391931418,1761003038329,-1500.0,0.00025768,2]
[391931419,1761003038339,-1500.0,0.00025768,2]
[391931420,1761003038348,-470.50430193,0.00025805,2]
[391931421,1761003038358,-656.67517876,0.0002594,2]
[391931422,1761003038367,-150.0,0.00025944,2]
[391931423,1761003038376,-892.0,0.00025999,2]
[391931424,1761003038385,-161821.78644977,0.00026,2]
[391931425,1761003038394,-1666.398039,0.00026,30]
[391931426,1761003038404,-500.0,0.00026015,2]
[391931427,1761003038414,-500.0,0.00026015,2]
[391931428,1761003038424,-273.19173859,0.00026015,2]
[391931429,1761003038433,-310.0,0.00026015,2]
[391931430,1761003038442,-468.37569826,0.00026015,2]
[391931431,1761003038451,-369.34331195,0.00026015,2]
[391931432,1761003038460,-6978.23601548,0.00026016,2]
[391931433,1761003038469,-15238.22416834,0.00026016,2]
[391931434,1761003038479,-892.0,0.0002604,2]
[391931435,1761003038488,-892.0,0.00026044,2]
[391931436,1761003038498,-892.0,0.00026046,2]
[391931437,1761003038507,-892.0,0.00026071,2]
[391931438,1761003038516,-332.0,0.00026087,2]
[391931439,1761003038526,-39233.3345639,0.00026103,2]
[391931440,1761003038535,-1119.323178,0.00026103,2]
[391931441,1761003038544,-561.9687848,0.00026103,2]
[391931442,1761003038554,-42533.2707063,0.00026106,2]
[391931443,1761003038563,-1097.45,0.00026107,3]
[391931444,1761003038572,-548.72,0.00026107,3]
[391931445,1761003038582,-274.36,0.00026107,3]
[391931446,1761003038592,-823.12,0.00026107,3]
[391931447,1761003038601,-226.17714604,0.00026111,2]
[391931448,1761003038611,-250.0,0.00026111,2]
[391931449,1761003038625,-514.84070869,0.00026111,2]
[391931450,1761003038635,-727.74617291,0.00026113,2]
[391931451,1761003038646,-1293.77097406,0.00026113,2]
[391931452,1761003038654,-2021.51714697,0.00026113,2]
[391931453,1761003038664,-726.45887028,0.00026113,2]
[391931454,1761003038673,-1291.48243605,0.00026113,2]
[391931455,1761003038682,-2017.94130633,0.00026113,2]
[391931456,1761003038693,-187.38921392,0.00026116,2]
[391931457,1761003038702,-500.0,0.00026116,2]
[391931458,1761003038711,-47932.85489151,0.00026117,2]
[391931459,1761003038724,-651.75021147,0.00026117,2]
[391931466,1761003043558,-200.0,0.00026116,10]
[391931467,1761003043568,-200.0,0.00026116,10]
[391931468,1761003043577,-200.0,0.00026116,10]
[391931469,1761003043587,-200.0,0.00026116,10]
[391931470,1761003043596,-200.0,0.00026116,10]
[391931471,1761003043605,-200.0,0.00026116,10]
[391931472,1761003043615,-200.0,0.00026116,10]
[391931473,1761003043627,-200.0,0.00026116,10]
[391931474,1761003043638,-200.0,0.00026116,10]
[391931475,1761003043647,-200.0,0.00026116,10]
[391931476,1761003043657,-200.0,0.00026116,10]
[391931477,1761003043667,-200.0,0.00026116,10]
[391931478,1761003043676,-200.0,0.00026116,10]
[391931479,1761003043686,-200.0,0.00026116,10]
[391931480,1761003043695,-18047.34977668,0.00026117,2]
[391931494,1761003080850,150.0,0.0002201,2]
[391931497,1761003405420,150.0,0.00022047,2]
[391931509,1761003561688,760.81040476,0.00024075,2]
[391931510,1761003561710,3967.12408328,0.00024075,2]
[391931512,1761003708338,319.1465078,0.00023567,2]
[391931513,1761003710273,567.37156942,0.00023567,2]
[391931523,1761003798142,222.83675342,0.00023567,2]
[391931524,1761003800034,401.10615616,0.00023567,2]
[391931525,1761003801689,713.07761096,0.00023567,2]
[391931526,1761003803293,403.50316014,0.00023567,2]
[391931527,1761003804993,423.24422858,0.00023567,2]
[391931528,1761003814934,955.18453286,0.00023554,2]
[391931529,1761003893686,152.12,0.00024075,2]
[391931536,1761004001363,207.80739566,0.00023567,2]
[391931537,1761004002869,373.67925888,0.00023567,2]
[391931538,1761004009749,512.89349268,0.00023554,2]
[391931540,1761004101982,370.83541756,0.00023567,2]
[391931541,1761004104045,667.50375161,0.00023567,2]
[391931542,1761004105922,1186.6733362,0.00023567,2]
[391931543,1761004107676,1854.17708782,0.00023567,2]
[391931564,1761004213517,190.275469,0.00030137,120]
[391931578,1761004232597,-289.82,0.00024221,10]
[391931579,1761004232607,-417.92330933,0.00024301,2]
[391931580,1761004232616,-147.39567581,0.00024615,2]
[391931581,1761004232627,-254.06861319,0.00024615,2]
[391931583,1761004232636,-171.63624125,0.00024807,2]
[391931584,1761004232647,-193.23811152,0.00024807,2]
[391931585,1761004232657,-248.82855018,0.00024807,2]
[391931607,1761004238269,-407.9452848,0.00024807,2]
[391931609,1761004238283,-1167.59792886,0.00024807,2]
[391931611,1761004238292,-480.61180573,0.00024901,2]
[391931613,1761004238302,-250.0,0.00025101,2]
[391931615,1761004238311,-199.0,0.00025205,7]
[391931617,1761004238322,-893.0,0.00025357,2]
[391931619,1761004238332,-199.0,0.00025479,8]
[391931620,1761004238341,-300.0,0.00025499,2]
[391931622,1761004238353,-543.30030213,0.00025501,2]
[391931625,1761004238363,-892.0,0.00025612,2]
[391931627,1761004238372,-1159.20765605,0.00025696,4]
[391931628,1761004238382,-762.96298442,0.00025707,4]
[391931631,1761004238391,-199.0,0.00025753,9]
[391931633,1761004238401,-16244.28528892,0.00025896,2]
[391931635,1761004238411,-6978.23601548,0.00025927,2]
[391931636,1761004238420,-689.8,0.0002597,3]
[391931640,1761004238430,-344.9,0.0002597,3]
[391931643,1761004238440,-172.45,0.0002597,3]
[391931645,1761004238449,-2933.7,0.0002597,10]
[391931647,1761004238459,-497.80722254,0.00025973,2]
[391931649,1761004238468,-500.0,0.00025973,2]
[391931650,1761004238478,-500.0,0.00025973,2]
[391931653,1761004238487,-500.0,0.00025973,2]
[391931654,1761004238497,-500.0,0.00025973,2]
[391931657,1761004238506,-335.9880288,0.00025973,2]
[391931659,1761004238516,-500.0,0.00025973,2]
[391931660,1761004238525,-500.0,0.00025973,2]
[391931662,1761004238534,-517.39,0.00025979,3]
[391931664,1761004238544,-500.0,0.00025979,2]
[391931667,1761004238554,-500.0,0.00025979,2]
[391931669,1761004238563,-500.0,0.00025979,2]
[391931670,1761004238573,-500.0,0.00025979,2]
[391931672,1761004238583,-500.0,0.00025979,2]
[391931675,1761004238593,-500.0,0.00025979,2]
[391931677,1761004238603,-458.72564733,0.00025979,2]
[391931679,1761004238612,-500.0,0.00025979,2]
[391931681,1761004238621,-500.0,0.00025979,2]
[391931682,1761004238631,-500.0,0.00025979,2]
[391931684,1761004238641,-500.0,0.00025979,2]
[391931686,1761004238650,-500.0,0.00025979,2]
[391931688,1761004238660,-500.0,0.00025979,2]
[391931690,1761004238670,-500.0,0.00025979,2]
[391931692,1761004238679,-500.0,0.00025979,2]
[391931694,1761004238689,-500.0,0.00025979,2]
[391931696,1761004238698,-500.0,0.00025979,2]
[391931698,1761004238707,-500.0,0.00025979,2]
[391931699,1761004238716,-500.0,0.00025979,2]
[391931701,1761004238725,-500.0,0.00025979,2]
[391931703,1761004238734,-500.0,0.00025979,2]
[391931705,1761004238743,-500.0,0.00025979,2]
[391931707,1761004238752,-598.00462717,0.00025979,2]
[391931708,1761004238761,-500.0,0.00025979,2]
[391931710,1761004238771,-290.0,0.00025979,2]
[391931712,1761004238780,-500.0,0.00025979,2]
[391931714,1761004238789,-500.0,0.00025979,2]
[391931716,1761004238798,-500.0,0.00025979,2]
[391931718,1761004238808,-500.0,0.00025979,2]
[391931720,1761004238818,-500.0,0.00025979,2]
[391931722,1761004238827,-500.0,0.00025979,2]
[391931724,1761004238836,-500.0,0.00025979,2]
[391931726,1761004238846,-162.2897518,0.00025979,2]
[391931728,1761004238855,-500.0,0.00025979,2]
[391931730,1761004238864,-1379.61,0.0002598,3]
[391931732,1761004238874,-86662.5479817,0.0002598,2]
[391931734,1761004238884,-43331.2739908,0.00025986,2]
[391931736,1761004238894,-151.0,0.00025989,2]
[391931738,1761004238903,-151.0,0.00025989,2]
[391931739,1761004238913,-151.0,0.00025989,2]
[391931740,1761004238922,-159.88976109,0.00025989,2]
[391931741,1761004238931,-198.0,0.00025989,2]
[391931742,1761004238941,-271.43195023,0.00025989,2]
[391931743,1761004238951,-151.0,0.00025989,2]
[391931744,1761004238961,-500.0,0.00025989,2]
[391931745,1761004238972,-100000.0,0.0002599,2]
[391931746,1761004238981,-152.094476,0.0002599,7]
[391931747,1761004238991,-964.968896,0.0002599,7]
[391931748,1761004239002,-1076.664811,0.0002599,7]
[391931749,1761004239012,-964.968896,0.0002599,7]
[391931750,1761004239023,-964.968896,0.0002599,7]
[391931751,1761004239033,-1076.664811,0.0002599,7]
[391931752,1761004239042,-964.968896,0.0002599,7]
[391931753,1761004239053,-1076.664811,0.0002599,7]
[391931754,1761004239063,-1076.664811,0.0002599,7]
[391931755,1761004239073,-292.577982,0.0002599,7]
[391931756,1761004239083,-151.0,0.0002599,7]
[391931757,1761004239093,-151.0,0.0002599,7]
[391931758,1761004239103,-151.0,0.0002599,7]
[391931759,1761004239113,-153.475738,0.0002599,7]
[391931760,1761004239123,-151.0,0.0002599,7]
[391931761,1761004239132,-151.0,0.0002599,7]
[391931762,1761004239142,-230.22554,0.0002599,7]
[391931763,1761004239151,-151.0,0.0002599,7]
[391931764,1761004239161,-151.0,0.0002599,7]
[391931765,1761004239170,-241.206997,0.0002599,7]
[391931766,1761004239180,-241.206997,0.0002599,7]
[391931767,1761004239190,-241.206997,0.0002599,7]
[391931768,1761004239200,-241.206997,0.0002599,7]
[391931769,1761004239210,-151.0,0.0002599,7]
[391931770,1761004239220,-151.0,0.0002599,7]
[391931771,1761004239230,-154.024293,0.0002599,7]
[391931772,1761004239240,-151.0,0.0002599,7]
[391931773,1761004239250,-537.126885,0.0002599,7]
[391931774,1761004239259,-537.126885,0.0002599,7]
[391931775,1761004239269,-187.38921392,0.00025995,2]
[391931776,1761004239282,-151.0,0.00025996,7]
[391931777,1761004239292,-151.0,0.00025996,7]
[391931778,1761004239301,-151.0,0.00025996,7]
[391931779,1761004239312,-159.10792,0.00025996,7]
[391931780,1761004239323,-151.0,0.00025996,7]
[391931781,1761004239332,-151.0,0.00025996,7]
[391931782,1761004239342,-151.0,0.00025996,7]
[391931783,1761004239353,-151.0,0.00025996,7]
[391931784,1761004239362,-151.0,0.00025996,7]
[391931785,1761004239372,-174.098876,0.00025996,7]
[391931786,1761004239381,-174.098876,0.00025996,7]
[391931787,1761004239391,-174.098876,0.00025996,7]
[391931788,1761004239400,-174.098876,0.00025996,7]
[391931789,1761004239410,-642.856314,0.00025996,7]
[391931790,1761004239419,-642.856314,0.00025996,7]
[391931791,1761004239429,-642.856314,0.00025996,7]
[391931792,1761004239438,-642.856314,0.00025996,7]
[391931793,1761004239448,-964.968896,0.00025996,7]
[391931794,1761004239458,-1076.664811,0.00025996,7]
[391931795,1761004239468,-964.968896,0.00025996,7]
[391931796,1761004239477,-964.968896,0.00025996,7]
[391931797,1761004239487,-1076.664811,0.00025996,7]
[391931798,1761004239496,-964.968896,0.00025996,7]
[391931799,1761004239506,-1076.664811,0.00025996,7]
[391931800,1761004239515,-1076.664811,0.00025996,7]
[391931801,1761004239525,-151.0,0.00025996,7]
[391931802,1761004239534,-151.0,0.00025996,7]
[391931803,1761004239543,-151.0,0.00025996,7]
[391931804,1761004239553,-151.0,0.00025996,7]
[391931805,1761004239562,-151.0,0.00025996,7]
[391931806,1761004239572,-151.0,0.00025996,7]
[391931807,1761004239582,-151.0,0.00025996,7]
[391931808,1761004239592,-241.206997,0.00025996,7]
[391931809,1761004239601,-241.206997,0.00025996,7]
[391931810,1761004239611,-241.206997,0.00025996,7]
[391931811,1761004239621,-241.206997,0.00025996,7]
[391931812,1761004239631,-151.0,0.00025997,7]
[391931813,1761004239641,-537.126885,0.00025997,7]
[391931814,1761004239650,-537.126885,0.00025997,7]
[391931815,1761004239660,-43331.2739908,0.00025997,2]
[391931816,1761004239670,-250.0,0.00026001,2]
[391931817,1761004239680,-533.88981491,0.00026001,2]
[391931818,1761004239690,-226.17714604,0.00026001,2]
[391931819,1761004239700,-151.0,0.00026005,2]
[391931820,1761004239709,-151.0,0.00026005,2]
[391931821,1761004239719,-151.0,0.00026005,2]
[391931822,1761004239728,-213.32867111,0.00026005,2]
[391931823,1761004239738,-775.0,0.00026005,2]
[391931824,1761004239747,-151.0,0.00026005,2]
[391931825,1761004239757,-500.0,0.00026005,2]
[391931826,1761004239766,-129993.821973,0.00026006,2]
[391931827,1761004239776,-151.0,0.00026007,7]
[391931828,1761004239785,-151.0,0.00026007,7]
[391931829,1761004239795,-151.0,0.00026007,7]
[391931830,1761004239805,-151.0,0.00026007,7]
[391931831,1761004239814,-151.0,0.00026007,7]
[391931832,1761004239823,-151.0,0.00026007,7]
[391931833,1761004239833,-151.0,0.00026007,7]
[391931834,1761004239843,-151.0,0.00026007,7]
[391931835,1761004239853,-151.0,0.00026007,7]
[391931836,1761004239863,-151.0,0.00026007,7]
[391931837,1761004239873,-151.0,0.00026007,7]
[391931838,1761004239882,-151.0,0.00026007,7]
[391931839,1761004239892,-157.392733,0.00026007,7]
[391931840,1761004239901,-174.098876,0.00026007,7]
[391931841,1761004239911,-174.098876,0.00026007,7]
[391931842,1761004239920,-174.098876,0.00026007,7]
[391931843,1761004239930,-174.098876,0.00026007,7]
[391931844,1761004239939,-642.856314,0.00026007,7]
[391931845,1761004239949,-642.856314,0.00026007,7]
[391931846,1761004239959,-642.856314,0.00026007,7]
[391931847,1761004239969,-642.856314,0.00026007,7]
[391931848,1761004239978,-964.968896,0.00026007,7]
[391931849,1761004239989,-1076.664811,0.00026007,7]
[391931850,1761004239999,-964.968896,0.00026007,7]
[391931851,1761004240010,-964.968896,0.00026007,7]
[391931852,1761004240019,-1076.664811,0.00026007,7]
[391931853,1761004240030,-964.968896,0.00026007,7]
[391931854,1761004240039,-1076.664811,0.00026007,7]
[391931855,1761004240049,-1076.664811,0.00026007,7]
[391931856,1761004240059,-151.0,0.00026007,7]
[391931857,1761004240068,-151.0,0.00026007,7]
[391931858,1761004240078,-151.0,0.00026007,7]
[391931859,1761004240087,-151.0,0.00026007,7]
[391931860,1761004240097,-151.0,0.00026007,7]
[391931861,1761004240107,-244.405244,0.00026007,7]
[391931862,1761004240116,-241.206997,0.00026007,7]
[391931863,1761004240127,-241.206997,0.00026007,7]
[391931864,1761004240137,-241.206997,0.00026007,7]
[391931865,1761004240146,-241.206997,0.00026007,7]
[391931866,1761004240156,-151.0,0.00026007,7]
[391931867,1761004240166,-537.126885,0.00026007,7]
[391931868,1761004240176,-537.126885,0.00026007,7]
[391931869,1761004240185,-151.0,0.00026016,7]
[391931870,1761004240194,-151.0,0.00026016,7]
[391931871,1761004240204,-151.0,0.00026016,7]
[391931872,1761004240214,-195.017758,0.00026016,7]
[391931873,1761004240224,-151.0,0.00026016,7]
[391931874,1761004240233,-195.017758,0.00026016,7]
[391931875,1761004240242,-195.017758,0.00026016,7]
[391931876,1761004240252,-195.017758,0.00026016,7]
[391931877,1761004240261,-151.0,0.00026016,7]
[391931878,1761004240270,-151.0,0.00026016,7]
[391931879,1761004240282,-151.0,0.00026016,7]
[391931880,1761004240292,-151.0,0.00026016,7]
[391931881,1761004240301,-151.0,0.00026016,7]
[391931882,1761004240310,-151.0,0.00026016,7]
[391931883,1761004240320,-151.0,0.00026016,7]
[391931884,1761004240329,-151.0,0.00026016,7]
[391931885,1761004240339,-151.0,0.00026016,7]
[391931886,1761004240349,-151.0,0.00026016,7]
[391931887,1761004240359,-151.0,0.00026016,7]
[391931888,1761004240368,-151.0,0.00026016,7]
[391931889,1761004240378,-243.169452,0.00026016,7]
[391931890,1761004240387,-151.0,0.00026016,7]
[391931891,1761004240396,-151.0,0.00026016,7]
[391931892,1761004240405,-153.329086,0.00026016,7]
[391931893,1761004240415,-151.0,0.00026016,7]
[391931894,1761004240424,-151.0,0.00026016,7]
[391931895,1761004240433,-151.0,0.00026016,7]
[391931896,1761004240442,-151.0,0.00026016,7]
[391931897,1761004240453,-151.0,0.00026016,7]
[391931898,1761004240464,-151.0,0.00026016,7]
[391931899,1761004240473,-151.0,0.00026016,7]
[391931900,1761004240485,-174.098876,0.00026016,7]
[391931901,1761004240495,-174.098876,0.00026016,7]
[391931902,1761004240504,-174.098876,0.00026016,7]
[391931903,1761004240513,-174.098876,0.00026016,7]
[391931904,1761004240523,-642.856314,0.00026016,7]
[391931905,1761004240533,-642.856314,0.00026016,7]
[391931907,1761004240542,-642.856314,0.00026016,7]
[391931909,1761004240552,-642.856314,0.00026016,7]
[391931910,1761004240562,-964.968896,0.00026016,7]
[391931911,1761004240571,-1076.664811,0.00026016,7]
[391931912,1761004240580,-964.968896,0.00026016,7]
[391931914,1761004240590,-964.968896,0.00026016,7]
[391931915,1761004240599,-1076.664811,0.00026016,7]
[391931916,1761004240608,-964.968896,0.00026016,7]
[391931917,1761004240617,-1076.664811,0.00026016,7]
[391931919,1761004240627,-1076.664811,0.00026016,7]
[391931921,1761004240636,-151.0,0.00026016,7]
[391931923,1761004240645,-200.961726,0.00026016,7]
[391931925,1761004240655,-151.0,0.00026016,7]
[391931927,1761004240664,-151.0,0.00026016,7]
[391931929,1761004240673,-241.206997,0.00026016,7]
[391931931,1761004240683,-241.206997,0.00026016,7]
[391931933,1761004240693,-241.206997,0.00026016,7]
[391931935,1761004240702,-241.206997,0.00026016,7]
[391931937,1761004240711,-151.0,0.00026016,7]
[391931939,1761004240721,-537.126885,0.00026016,7]
[391931941,1761004240732,-537.126885,0.00026016,7]
[391931943,1761004240741,-370000.0,0.00026016,2]
[391931945,1761004240751,-261.60819981,0.00026027,10]
[391931947,1761004240760,-151.0,0.00026044,2]
[391931949,1761004240769,-151.0,0.00026044,2]
[391931951,1761004240778,-151.0,0.0002606,2]
[391931953,1761004240788,-775.0,0.0002606,2]
[391931955,1761004240801,-151.0,0.0002606,2]
[391931957,1761004240810,-500.0,0.0002606,2]
[391931959,1761004240820,-335.50537354,0.00026073,2]
[391931961,1761004240829,-472.36268032,0.00026073,2]
[391931963,1761004240838,-500.0,0.00026073,2]
[391931965,1761004240848,-500.0,0.00026073,2]
[391931967,1761004240857,-500.0,0.00026073,2]
[391931969,1761004240867,-500.0,0.00026073,2]
[391931971,1761004240876,-174.86420049,0.00026073,2]
[391931973,1761004240885,-290.67468229,0.00026073,2]
[391931975,1761004240895,-170.05958853,0.00026073,2]
[391931977,1761004240904,-510.21036092,0.00026073,2]
[391931979,1761004240914,-500.0,0.00026073,2]
[391931981,1761004240923,-500.0,0.00026073,2]
[391931983,1761004240933,-500.0,0.00026073,2]
[391931985,1761004240942,-500.0,0.00026073,2]
[391931987,1761004240952,-500.0,0.00026073,2]
[391931989,1761004240962,-39233.3345639,0.00026096,2]
[391931991,1761004240971,-1305.3770172,0.00026096,2]
[391931993,1761004240981,-1685.9063546,0.00026096,2]
[391931995,1761004240995,-151.56260228,0.00026099,2]
[391931997,1761004241004,-151.0,0.00026099,2]
[391931999,1761004241014,-605.98879853,0.00026101,2]
[391932001,1761004241024,-151.0,0.00026106,7]
[391932003,1761004241033,-151.0,0.00026106,7]
[391932005,1761004241043,-169.790875,0.00026106,7]
[391932007,1761004241052,-151.0,0.00026106,7]
[391932009,1761004241062,-151.0,0.00026106,7]
[391932011,1761004241071,-151.0,0.00026106,7]
[391932013,1761004241081,-174.098876,0.00026106,7]
[391932015,1761004241090,-174.098876,0.00026106,7]
[391932017,1761004241099,-174.098876,0.00026106,7]
[391932019,1761004241108,-174.098876,0.00026106,7]
[391932021,1761004241118,-642.856314,0.00026106,7]
[391932023,1761004241127,-642.856314,0.00026106,7]
[391932025,1761004241137,-642.856314,0.00026106,7]
[391932026,1761004241147,-642.856314,0.00026106,7]
[391932029,1761004241156,-964.968896,0.00026106,7]
[391932031,1761004241166,-964.968896,0.00026106,7]
[391932032,1761004241175,-1076.664811,0.00026106,7]
[391932034,1761004241186,-964.968896,0.00026106,7]
[391932036,1761004241196,-1076.664811,0.00026106,7]
[391932039,1761004241206,-964.968893,0.00026106,7]
[391932040,1761004241215,-1076.664811,0.00026106,7]
[391932042,1761004241225,-1076.66481358,0.00026106,7]
[391932044,1761004241234,-151.0,0.00026106,7]
[391932046,1761004241244,-151.0,0.00026106,7]
[391932048,1761004241254,-151.0,0.00026106,7]
[391932050,1761004241264,-241.206997,0.00026106,7]
[391932052,1761004241277,-241.206997,0.00026106,7]
[391932054,1761004241286,-241.206997,0.00026106,7]
[391932056,1761004241298,-241.207003,0.00026106,7]
[391932059,1761004241308,-537.126885,0.00026106,7]
[391932061,1761004241319,-537.126885,0.00026106,7]
[391932063,1761004241328,-151.0,0.00026113,7]
[391932064,1761004241338,-546.7641194,0.00026113,2]
[391932067,1761004241347,-453.92577138,0.00026113,2]
[391932069,1761004241358,-198.0,0.00026115,2]
[391932071,1761004241367,-775.0,0.00026115,2]
[391932073,1761004241377,-151.0,0.00026115,2]
[391932075,1761004241386,-500.0,0.00026115,2]
[391932077,1761004241396,-151.314445,0.00026116,7]
[391932079,1761004241405,-152.357197,0.00026116,7]
[391932081,1761004241415,-151.0,0.00026116,7]
[391932083,1761004241424,-151.0,0.00026116,7]
[391932085,1761004241434,-195.017758,0.00026116,7]
[391932106,1761004241624,-151.0,0.00026116,7]
[391932108,1761004241634,-195.017758,0.00026116,7]
[391932110,1761004241644,-195.017758,0.00026116,7]
[391932112,1761004241653,-195.017758,0.00026116,7]
[391932114,1761004241663,-151.0,0.00026116,7]
[391932116,1761004241671,-151.0,0.00026116,7]
[391932118,1761004241681,-151.0,0.00026116,7]
[391932120,1761004241690,-181.355164,0.00026116,7]
[391932122,1761004241699,-151.0,0.00026116,7]
[391932124,1761004241708,-151.0,0.00026116,7]
[391932126,1761004241717,-153.973046,0.00026116,7]
[391932128,1761004241726,-151.0,0.00026116,7]
[391932130,1761004241735,-151.0,0.00026116,7]
[391932132,1761004241744,-174.033322,0.00026116,7]
[391932134,1761004241753,-151.0,0.00026116,7]
[391932136,1761004241762,-151.0,0.00026116,7]
[391932138,1761004241772,-151.0,0.00026116,7]
[391932140,1761004241782,-170.12956796,0.00026117,2]
[391932142,1761004241792,-151.0,0.00026127,7]
[391932144,1761004241803,-151.0,0.00026127,7]
[391932146,1761004241812,-281.17174685,0.00026153,2]
[391932148,1761004241821,-775.0,0.00026169,2]
[391932150,1761004241831,-151.0,0.00026169,2]
[391932152,1761004241840,-500.0,0.00026169,2]
[391932154,1761004241850,-500.0,0.00026173,2]
[391932156,1761004241859,-500.0,0.00026173,2]
[391932158,1761004241868,-500.0,0.00026173,2]
[391932160,1761004241877,-500.97530911,0.00026173,2]
[391932162,1761004241886,-500.0,0.00026173,2]
[391932164,1761004241896,-500.0,0.00026173,2]
[391932166,1761004241905,-636.48050139,0.00026173,2]
[391932168,1761004241914,-501.12193289,0.00026173,2]
[391932170,1761004241923,-500.0,0.00026173,2]
[391932172,1761004241932,-500.0,0.00026173,2]
[391932174,1761004241942,-892.0,0.00026201,2]
[391932176,1761004241951,-892.0,0.00026202,2]
[391932178,1761004241960,-160.0,0.00026208,2]
[391932179,1761004241969,-775.0,0.00026224,2]
[391932180,1761004241977,-151.0,0.00026224,2]
[391932181,1761004241987,-500.0,0.00026224,2]
[391932182,1761004241996,-500.0,0.00026263,2]
[391932183,1761004242006,-775.0,0.00026279,2]
[391932184,1761004242015,-245.0,0.00026279,2]
[391932185,1761004242024,-500.0,0.00026279,2]
[391932186,1761004242033,-300.0,0.000263,2]
[391932187,1761004242041,-892.0,0.00026307,7]
[391932188,1761004242051,-979.78,0.00026325,2]
[391932189,1761004242060,-775.0,0.00026334,2]
[391932190,1761004242069,-500.0,0.00026334,2]
[391932191,1761004242078,-892.0,0.00026365,2]
[391932192,1761004242087,-775.0,0.00026389,2]
[391932193,1761004242096,-500.0,0.00026389,2]
[391932194,1761004242105,-151.0,0.000264,15]